fUST/lending_fUST_20250314
["ID","MTS","AMOUNT","RATE_DAILY","PERIOD"]
[356138052,1741943240707,-514.65,0.00010185,2]
[356138053,1741943240728,-500.0,0.00010185,2]
[356138054,1741943240750,-500.0,0.00010185,2]
[356138055,1741943240771,-931.17,0.00010185,2]
[356138056,1741943240792,-500.0,0.00010185,2]
[356138057,1741943240813,-728.29,0.00010185,2]
[356138058,1741943240836,-500.0,0.00010185,2]
[356138059,1741943240856,-500.0,0.00010185,2]
[356138060,1741943240877,-824.82,0.00010185,2]
[356138061,1741943240899,-1034.61,0.00010185,2]
[356138062,1741943240923,-1205.41,0.00010185,2]
[356138063,1741943240948,-1151.05,0.00010185,2]
[356138064,1741943240971,-500.0,0.00010185,2]
[356138065,1741943240994,-500.0,0.00010185,2]
[356138066,1741943241016,-500.0,0.00010185,2]
[356138067,1741943241037,-500.0,0.00010185,2]
[356138068,1741943241057,-500.0,0.00010185,2]
[356138069,1741943241079,-500.0,0.00010185,2]
[356138070,1741943241100,-1152.69,0.00010185,2]
[356138071,1741943241125,-628.2,0.00010185,2]
[356138072,1741943241145,-500.0,0.00010185,2]
[356138073,1741943241167,-500.0,0.00010185,2]
[356138074,1741943241188,-987.65,0.00010185,2]
[356138075,1741943241212,-3911.09,0.00010185,2]
[356138076,1741943241233,-660.09,0.00010185,2]
[356138077,1741943241253,-500.0,0.00010185,2]
[356138078,1741943241274,-995.05,0.00010185,2]
[356138079,1741943241295,-1026.00480523,0.00010185,2]
[356138081,1741943309503,204.9616569,9.186e-05,2]
[356138083,1741943373109,-513.14987261,0.00010147,2]
[356138085,1741943407425,600.0,0.00012,3]
[356138121,1741943432559,-441.7797857,0.00010147,2]
[356138123,1741943432568,-34.1202143,0.00010183,2]
[356138191,1741943447521,-404.62577388,0.00010183,2]
[356138192,1741943447531,-299.01875481,0.00010183,2]
[356138193,1741943447541,-500.0,0.00010184,2]
[356138194,1741943447551,-500.0,0.00010184,2]
[356138195,1741943447562,-500.0,0.00010184,2]
[356138196,1741943447571,-500.0,0.00010184,2]
[356138197,1741943447581,-1207.73,0.00010184,2]
[356138198,1741943447592,-500.0,0.00010184,2]
[356138199,1741943447601,-1153.59,0.00010184,2]
[356138200,1741943447611,-500.0,0.00010184,2]
[356138201,1741943447621,-500.0,0.00010184,2]
[356138202,1741943447631,-731.21,0.00010184,2]
[356138203,1741943447641,-1676.13955239,0.00010184,2]
[356138205,1741943522381,24900.0,9.186e-05,2]
[356138206,1741943710537,600.0,0.00012,3]
[356138207,1741943773029,250.0,9.082e-05,2]
[356138208,1741943793131,179.3758221,9.155e-05,2]
[356138209,1741943924954,-1181.36031937,0.00010047,2]
[356138210,1741943924979,-333.83968063,0.00010056,2]
[356138211,1741944017380,600.0,0.00012,3]
[356138213,1741944233016,1617.5478371,9.1e-05,2]
[356138215,1741944311198,600.0,0.00012,3]
[356138218,1741944331625,2236.3430752,9.081e-05,2]
[356138224,1741944358320,10000.0,0.0001001,2]
[356138226,1741944371352,4540.74,0.0001001,2]
[356138228,1741944390444,10000.0,0.0001001,2]
[356138229,1741944398822,10000.0,0.0001001,2]
[356138230,1741944404766,10000.0,0.0001001,2]
[356138232,1741944410135,-218.66338449,0.00010047,2]
[356138233,1741944410622,10000.0,0.0001001,2]
[356138234,1741944415669,10000.0,0.0001001,2]
[356138243,1741944526958,3989.04624194,0.0001001,2]
[356138249,1741944559509,-798.74850536,0.00010047,2]
[356138250,1741944559530,-1017.41188981,0.00010056,2]
[356138251,1741944559551,-1017.41188981,0.00010066,2]
[356138252,1741944559571,-1017.41188981,0.00010075,2]
[356138253,1741944559592,-300.0,0.00010082,2]
[356138254,1741944559612,-500.0,0.00010083,2]
[356138255,1741944559633,-500.0,0.00010083,2]
[356138256,1741944559653,-500.0,0.00010083,2]
[356138257,1741944559674,-500.0,0.00010083,2]
[356138258,1741944559695,-138.66360885,0.00010083,2]
[356138264,1741944596109,203.48237797,9.984e-05,2]
[356138265,1741944598125,203.48237796,0.0001,2]
[356138269,1741944612213,600.0,0.00012,3]
[356138294,1741944633448,-203.48237796,0.00010016,2]
[356138295,1741944633458,-203.48237796,0.00010031,2]
[356138296,1741944633467,-203.48237796,0.00010047,2]
[356138297,1741944633476,-256.79710124,0.00010073,2]
[356138298,1741944633486,-500.0,0.00010073,2]
[356138299,1741944633496,-500.0,0.00010073,2]
[356138300,1741944633505,-431.36222717,0.00010073,2]
[356138301,1741944633514,-462.43905254,0.00010073,2]
[356138302,1741944633778,-500.0,0.00010073,2]
[356138303,1741944633805,-500.0,0.00010073,2]
[356138304,1741944633815,-160.82680922,0.00010073,2]
[356138305,1741944633825,-560.49316213,0.00010073,2]
[356138306,1741944633834,-500.0,0.00010073,2]
[356138307,1741944633843,-559.17989185,0.00010073,2]
[356138308,1741944633853,-500.41176921,0.00010073,2]
[356138309,1741944633863,-500.0,0.00010073,2]
[356138310,1741944633872,-500.0,0.00010073,2]
[356138311,1741944633881,-500.0,0.00010073,2]
[356138312,1741944633891,-151.64601776,0.00010073,2]
[356138313,1741944633900,-500.0,0.00010073,2]
[356138314,1741944633909,-397.986441,0.00010073,2]
[356138315,1741944633918,-300.0,0.00010082,2]
[356138316,1741944633928,-500.0,0.00010082,2]
[356138317,1741944633937,-500.47,0.00010082,2]
[356138318,1741944633947,-500.0,0.00010082,2]
[356138319,1741944633956,-500.0,0.00010082,2]
[356138320,1741944633966,-209.31312836,0.00010082,2]
[356138321,1741944633976,-4787.36639115,0.00010083,2]
[356138322,1741944633986,-1339.65,0.00010083,2]
[356138323,1741944633996,-500.0,0.00010083,2]
[356138324,1741944634005,-1187.16,0.00010083,2]
[356138325,1741944634015,-1157.41,0.00010083,2]
[356138326,1741944634025,-500.0,0.00010083,2]
[356138327,1741944634034,-1105.53,0.00010083,2]
[356138328,1741944634044,-6566.82,0.00010083,2]
[356138329,1741944634053,-979.67,0.00010083,2]
[356138330,1741944634063,-1076.58,0.00010083,2]
[356138331,1741944634077,-1606.05,0.00010083,2]
[356138332,1741944634086,-811.57,0.00010083,2]
[356138333,1741944634095,-500.0,0.00010083,2]
[356138334,1741944634105,-500.0,0.00010083,2]
[356138335,1741944634114,-500.0,0.00010083,2]
[356138336,1741944634124,-3258.2,0.00010083,2]
[356138337,1741944634134,-1126.18,0.00010083,2]
[356138338,1741944634145,-500.0,0.00010083,2]
[356138339,1741944634157,-500.0,0.00010083,2]
[356138340,1741944634167,-3810.98,0.00010083,2]
[356138341,1741944634177,-1054.12,0.00010083,2]
[356138342,1741944634186,-500.0,0.00010083,2]
[356138343,1741944634195,-4586.86,0.00010083,2]
[356138344,1741944634204,-512.97748431,0.00010083,2]
[356138345,1741944634213,-500.0,0.00010083,2]
[356138346,1741944634223,-501.23740279,0.00010083,2]
[356138347,1741944634232,-500.0,0.00010084,2]
[356138348,1741944634242,-500.0,0.00010084,2]
[356138349,1741944634251,-500.0,0.00010084,2]
[356138350,1741944634261,-500.0,0.00010084,2]
[356138351,1741944634271,-669.52,0.00010084,2]
[356138352,1741944634280,-500.0,0.00010084,2]
[356138353,1741944634290,-514.9,0.00010084,2]
[356138354,1741944634300,-500.0,0.00010084,2]
[356138355,1741944634310,-516.80621731,0.00010084,2]
[356138356,1741944634319,-500.0,0.00010084,2]
[356138357,1741944634329,-500.0,0.00010084,2]
[356138358,1741944634339,-509.35176024,0.00010084,2]
[356138359,1741944634349,-513.05416986,0.00010084,2]
[356138360,1741944634359,-500.0,0.00010084,2]
[356138361,1741944634368,-500.0,0.00010084,2]
[356138362,1741944634378,-660.89,0.00010084,2]
[356138363,1741944634387,-511.84440826,0.00010084,2]
[356138364,1741944634396,-739.16,0.00010084,2]
[356138365,1741944634408,-500.0,0.00010084,2]
[356138366,1741944634418,-742.28,0.00010084,2]
[356138367,1741944634428,-500.0,0.00010084,2]
[356138368,1741944634438,-500.0,0.00010084,2]
[356138369,1741944634448,-938.34,0.00010084,2]
[356138370,1741944634457,-500.0,0.00010084,2]
[356138371,1741944634466,-4275.79,0.00010084,2]
[356138372,1741944634476,-500.0,0.00010084,2]
[356138373,1741944634485,-500.0,0.00010084,2]
[356138374,1741944634494,-500.0,0.00010084,2]
[356138375,1741944634503,-500.0,0.00010084,2]
[356138376,1741944634513,-500.0,0.00010084,2]
[356138377,1741944634522,-265388.64,0.00010084,2]
[356138378,1741944634531,-679.4,0.00010084,2]
[356138379,1741944634541,-6795.75,0.00010084,2]
[356138380,1741944634551,-2449.17,0.00010084,2]
[356138381,1741944634560,-892.37,0.00010084,2]
[356138382,1741944634570,-1218.15,0.00010084,2]
[356138383,1741944634580,-1062.37,0.00010084,2]
[356138384,1741944634590,-1752.88,0.00010084,2]
[356138385,1741944634599,-538.21,0.00010084,2]
[356138386,1741944634608,-529.82,0.00010084,2]
[356138387,1741944634618,-511.58383088,0.00010084,2]
[356138388,1741944634627,-8721.11,0.00010084,2]
[356138389,1741944634636,-830.22,0.00010084,2]
[356138390,1741944634646,-1118.95,0.00010084,2]
[356138391,1741944634656,-700.74,0.00010084,2]
[356138392,1741944634665,-500.0,0.00010084,2]
[356138393,1741944634675,-790.45,0.00010084,2]
[356138394,1741944634684,-500.0,0.00010084,2]
[356138395,1741944634693,-500.0,0.00010084,2]
[356138396,1741944634702,-5408.84,0.00010084,2]
[356138397,1741944634712,-500.0,0.00010084,2]
[356138398,1741944634721,-500.0,0.00010084,2]
[356138399,1741944634730,-520.48,0.00010084,2]
[356138400,1741944634740,-500.0,0.00010084,2]
[356138401,1741944634749,-500.0,0.00010084,2]
[356138402,1741944634758,-500.0,0.00010084,2]
[356138403,1741944634767,-21453.0,0.00010084,2]
[356138404,1741944634777,-500.0,0.00010084,2]
[356138405,1741944634786,-602.03,0.00010084,2]
[356138406,1741944634795,-500.0,0.00010084,2]
[356138407,1741944634804,-956.66,0.00010084,2]
[356138408,1741944634813,-500.0,0.00010084,2]
[356138409,1741944634822,-500.0,0.00010084,2]
[356138410,1741944634831,-946.5,0.00010084,2]
[356138411,1741944634841,-845.85,0.00010084,2]
[356138412,1741944634850,-813.64,0.00010084,2]
[356138413,1741944634859,-953.59,0.00010084,2]
[356138414,1741944634868,-500.0,0.00010084,2]
[356138415,1741944634877,-765.58,0.00010084,2]
[356138416,1741944634886,-500.0,0.00010084,2]
[356138417,1741944634895,-661.86,0.00010084,2]
[356138418,1741944634904,-573.6,0.00010084,2]
[356138419,1741944634913,-584.17,0.00010084,2]
[356138420,1741944634923,-2531.33,0.00010084,2]
[356138421,1741944634932,-614.34,0.00010084,2]
[356138422,1741944634941,-500.0,0.00010084,2]
[356138423,1741944634951,-3728.5,0.00010084,2]
[356138424,1741944634960,-10616.99,0.00010084,2]
[356138425,1741944634970,-995.02,0.00010084,2]
[356138426,1741944634979,-500.0,0.00010084,2]
[356138427,1741944634988,-109576.40942961,0.00010085,2]
[356138428,1741944635013,-66833.96487216,0.00010085,2]
[356138429,1741944635172,-561.6362755,0.00010085,2]
[356138492,1741944643741,-393.3215682,0.00010083,2]
[356138503,1741944677752,10347.4048086,0.0001535,120]
[356138504,1741944782114,24900.0,9.1e-05,2]
[356138506,1741944831057,-296.15972086,0.00010073,2]
[356138507,1741944834574,-203.84027914,0.00010073,2]
[356138508,1741944834597,-4.93805266,0.00010073,2]
[356138509,1741944873387,222000.0,9.984e-05,2]
[356138511,1741944912211,600.0,0.00012,3]
[356138519,1741944965391,-300.0,0.00010081,2]
[356138520,1741944965418,-296.15972086,0.00010082,2]
[356138521,1741944965445,-500.0,0.00010082,2]
[356138522,1741944965471,-557.41303201,0.00010082,2]
[356138523,1741944965496,-500.0,0.00010082,2]
[356138524,1741944965522,-500.0,0.00010082,2]
[356138525,1741944965549,-500.0,0.00010082,2]
[356138526,1741944965575,-500.0,0.00010082,2]
[356138527,1741944965602,-641.62,0.00010082,2]
[356138528,1741944965629,-500.0,0.00010082,2]
[356138529,1741944965656,-763.80724713,0.00010082,2]
[356138530,1741945008876,37735.12251776,0.00010082,3]
[356138531,1741945008901,2276.25926624,0.00010082,3]
[356138532,1741945016456,222000.0,9.983e-05,2]
[356138533,1741945138237,222000.0,9.983e-05,2]
[356138534,1741945210807,600.0,0.000115,3]
[356138535,1741945281946,55444.74198651,9.983e-05,2]
[356138536,1741945282853,-183.1431957,9.983e-05,2]
[356138537,1741945288349,-183.1431957,9.983e-05,2]
[356138538,1741945289662,-232.10257516,9.983e-05,2]
[356138540,1741945324346,-300.0,9.982e-05,2]
[356138541,1741945325471,-200.0,9.983e-05,2]
[356138544,1741945375419,-484.56608377,9.983e-05,2]
[356138545,1741945384958,-150.0,9.982e-05,2]
[356138546,1741945392569,-150.0,9.982e-05,2]
[356138548,1741945399242,-189.2297652,9.982e-05,2]
[356138549,1741945443376,-207.15,9.982e-05,2]
[356138552,1741945504331,-150.0,9.982e-05,2]
[356138553,1741945511640,600.0,0.000115,3]
[356138582,1741945563500,-150.0,9.982e-05,2]
[356138583,1741945579450,17664.0,0.000115,3]
[356138587,1741945614124,-150.0,9.982e-05,2]
[356138588,1741945614146,-19.9229242,9.982e-05,2]
[356138589,1741945614167,-47.53811264,9.982e-05,2]
[356138590,1741945622962,-261.7922,9.982e-05,2]
[356138591,1741945624304,-38.2078,9.982e-05,2]
[356138592,1741945624333,-135.60508306,9.982e-05,2]
[356138593,1741945628584,213.14987261,9.982e-05,2]
[356138594,1741945631894,261.7922,9.982e-05,2]
[356138595,1741945639898,-105303.24504433,9.983e-05,2]
[356138602,1741945809398,1000.0,0.000115,3]
[356138603,1741945812130,600.0,0.000115,3]
[356138605,1741945829270,-298.77309953,9.099e-05,2]
[356138624,1741945834984,-403.41495957,9.099e-05,2]
[356138628,1741945837891,-905.21000015,9.099e-05,2]
[356138632,1741945839988,-716.06,9.099e-05,2]
[356138672,1741945846141,-700.32066937,9.099e-05,2]
[356138673,1741945846153,-4730.00000005,9.099e-05,2]
[356138675,1741945861851,-457.3912012,9.099e-05,2]
[356138676,1741945863001,-246.27627781,9.099e-05,2]
[356138677,1741945863492,-246.27627781,9.098e-05,2]
[356138678,1741945869903,-53.72372219,9.098e-05,2]
[356138679,1741945869929,-165.03549918,9.099e-05,2]
[356138680,1741945872402,-266.42683536,9.099e-05,2]
[356138681,1741945881536,-206.01159091,9.099e-05,2]
[356138682,1741945892223,-218.75922137,9.099e-05,2]
[356138683,1741945918325,-187.25236954,9.098e-05,2]
[356138685,1741945922472,-31.50685183,9.098e-05,2]
[356138686,1741945922497,-234.84314817,9.099e-05,2]
[356138687,1741945927010,-285.21772863,9.098e-05,2]
[356138688,1741945933454,-14.78227137,9.098e-05,2]
[356138689,1741945933496,-138.47772863,9.098e-05,2]
[356138690,1741945950636,-206.59990355,9.098e-05,2]
[356138691,1741945968455,-108.52473736,9.098e-05,2]
[356138692,1741945968479,-41.47526264,9.098e-05,2]
[356138693,1741945971166,-150.0,9.098e-05,2]
[356138694,1741945983338,-150.0,9.098e-05,2]
[356138698,1741946043193,-97.00246599,9.098e-05,2]
[356138699,1741946043218,-136.57069865,9.098e-05,2]
[356138700,1741946103774,-70.0292049,9.098e-05,2]
[356138701,1741946103799,-107.3022708,9.098e-05,2]
[356138702,1741946111650,600.0,0.000115,3]
[356138705,1741946163026,-248.8156253,9.098e-05,2]
[356138709,1741946224710,-300.0,9.098e-05,2]
[356138719,1741946413063,600.0,0.000115,3]
[356138730,1741946710784,600.0,0.000115,3]
[356138736,1741946950165,-300.0,9.098e-05,2]
[356138737,1741946950187,-15351.47749733,9.099e-05,2]
[356138738,1741946950208,-244.60632529,9.799e-05,2]
[356138739,1741946950232,-72238.67828942,9.8e-05,2]
[356138740,1741946961112,-52863.26677786,9.8e-05,2]
[356138741,1741946967097,-8547.85539674,9.8e-05,2]
[356138742,1741946969201,20000.0,8.971e-05,2]
[356138756,1741947012934,600.0,0.000115,3]
[356138765,1741947032944,-505.29837822,8.971e-05,2]
[356138766,1741947032966,-719.090524,8.971e-05,2]
[356138767,1741947032978,-936.71346659,8.971e-05,2]
[356138794,1741947040265,-2738.89763119,8.971e-05,2]
[356138795,1741947040275,-300.0,9.799e-05,2]
[356138796,1741947040284,-684.42763231,9.8e-05,2]
[356138837,1741947043289,-1462.72579344,9.8e-05,2]
[356138970,1741947309690,600.0,0.000115,3]
[356138975,1741947528815,2116.90270507,0.0001535,120]
[356138976,1741947611643,600.0,0.000115,3]
[356138978,1741947724579,-150.97123,8.692e-05,2]
[356138979,1741947796564,-150.0,8.538e-05,2]
[356138983,1741947913384,600.0,0.000115,3]
[356138984,1741947915450,-382.76503061,8.453e-05,2]
[356138986,1741947941107,-156.48739094,8.453e-05,2]
[356138987,1741947941129,-313.20517205,8.538e-05,2]
[356138988,1741947954089,-471.26008709,8.538e-05,2]
[356138993,1741948005104,-375.54457538,8.538e-05,2]
[356138997,1741948049471,-731.54360366,8.281e-05,2]
[356138999,1741948054105,-1734.32589604,8.281e-05,2]
[356139004,1741948148090,-500.0,8.28e-05,2]
[356139005,1741948148114,-487.42207591,8.28e-05,2]
[356139006,1741948148137,-500.0,8.28e-05,2]
[356139007,1741948148159,-500.0,8.28e-05,2]
[356139008,1741948148181,-500.0,8.28e-05,2]
[356139009,1741948148203,-500.0,8.28e-05,2]
[356139010,1741948148227,-22434.1305003,8.281e-05,2]
[356139011,1741948148249,-288.52407848,8.538e-05,2]
[356139012,1741948148270,-171.2244277,8.838e-05,2]
[356139013,1741948148291,-10000.0,8.839e-05,2]
[356139014,1741948148311,-3877.8336259,8.868e-05,2]
[356139015,1741948158090,-569.56441398,8.868e-05,2]
[356139016,1741948159099,-260.83629182,8.868e-05,2]
[356139017,1741948159121,-12254.75212908,9.699e-05,2]
[356139032,1741948210597,600.0,0.000115,3]
[356139088,1741948232601,-300.0,9.698e-05,2]
[356139090,1741948232611,-7959.68055185,9.699e-05,2]
[356139093,1741948232622,-52335.8828902,9.699e-05,2]
[356139109,1741948240682,-290.30066989,9.698e-05,2]
[356139130,1741948243626,-41.63511632,9.698e-05,2]
[356139131,1741948243637,-0.09205872,9.699e-05,2]
[356139138,1741948511622,600.0,0.000115,3]
[356139141,1741948812224,600.0,0.000115,3]
[356139144,1741949112033,600.0,0.000115,3]
[356139147,1741949223564,-203.84027914,8.764e-05,2]
[356139148,1741949226235,-131.69566636,8.764e-05,2]
[356139149,1741949226258,-72.14461278,9.697e-05,2]
[356139150,1741949234548,-232.10257516,9.697e-05,2]
[356139151,1741949235106,-701.12373404,9.697e-05,2]
[356139152,1741949235128,-500.0,9.697e-05,2]
[356139153,1741949235149,-382.55961231,9.697e-05,2]
[356139154,1741949235172,-500.0,9.697e-05,2]
[356139155,1741949235193,-300.0,9.697e-05,2]
[356139156,1741949235214,-2054.9020697,9.698e-05,2]
[356139157,1741949243168,-200.0,9.698e-05,2]
[356139158,1741949247889,-273.45116038,9.698e-05,2]
[356139159,1741949254555,-211.11492339,9.698e-05,2]
[356139162,1741949266029,-261.7922,9.698e-05,2]
[356139163,1741949273182,-183.1431957,9.698e-05,2]
[356139171,1741949335062,-189.2297652,9.599e-05,2]
[356139175,1741949353087,-300.0,9.598e-05,2]
[356139176,1741949353110,-2062.06663555,9.599e-05,2]
[356139177,1741949357136,-4090.51172253,9.599e-05,2]
[356139183,1741949412159,600.0,0.000115,3]
[356139221,1741949432711,-300.0,9.598e-05,2]
[356139224,1741949432725,-25030.4913813,9.599e-05,2]
[356139261,1741949438470,-256.11202706,9.598e-05,2]
[356139263,1741949438479,-6036.23887827,9.599e-05,2]
[356139331,1741949440956,-1011.25001548,9.599e-05,2]
[356139332,1741949441981,-181.5599978,9.599e-05,2]
[356139337,1741949443544,-183398.65160387,9.599e-05,2]
[356139338,1741949443554,-6409.65,9.697e-05,2]
[356139339,1741949443564,-1177.01,9.697e-05,2]
[356139340,1741949443573,-500.0,9.697e-05,2]
[356139342,1741949443582,-500.0,9.697e-05,2]
[356139343,1741949443591,-500.0,9.697e-05,2]
[356139344,1741949443600,-625.11,9.697e-05,2]
[356139345,1741949443610,-500.0,9.698e-05,2]
[356139346,1741949443619,-512.28,9.698e-05,2]
[356139347,1741949443628,-500.0,9.698e-05,2]
[356139348,1741949443637,-500.0,9.698e-05,2]
[356139349,1741949443646,-388.1017105,9.698e-05,2]
[356139350,1741949443655,-500.0,9.698e-05,2]
[356139351,1741949443665,-500.0,9.698e-05,2]
[356139352,1741949443674,-509.18955406,9.698e-05,2]
[356139353,1741949443683,-5794.09,9.698e-05,2]
[356139354,1741949443693,-500.0,9.698e-05,2]
[356139355,1741949443702,-1499.66,9.698e-05,2]
[356139356,1741949443712,-500.0,9.698e-05,2]
[356139357,1741949443721,-1318.62,9.698e-05,2]
[356139358,1741949443730,-500.0,9.698e-05,2]
[356139359,1741949443739,-517.18963821,9.698e-05,2]
[356139360,1741949443748,-220.15514489,9.698e-05,2]
[356139361,1741949443758,-1323.74,9.698e-05,2]
[356139362,1741949443767,-526.65291414,9.698e-05,2]
[356139363,1741949443776,-322.92315769,9.698e-05,2]
[356139364,1741949443786,-1273.56,9.698e-05,2]
[356139365,1741949443795,-3422.01,9.698e-05,2]
[356139366,1741949443804,-500.0,9.698e-05,2]
[356139367,1741949443813,-500.0,9.698e-05,2]
[356139368,1741949443824,-4427.61,9.698e-05,2]
[356139369,1741949443833,-500.0,9.698e-05,2]
[356139370,1741949443843,-2489.18,9.698e-05,2]
[356139371,1741949443852,-1161.1,9.698e-05,2]
[356139372,1741949443862,-893.81,9.698e-05,2]
[356139373,1741949443871,-500.0,9.698e-05,2]
[356139374,1741949443881,-1246.28,9.698e-05,2]
[356139375,1741949443891,-500.0,9.773e-05,2]
[356139376,1741949443900,-509.53307418,9.773e-05,2]
[356139377,1741949443909,-500.60857867,9.773e-05,2]
[356139378,1741949443919,-500.0,9.773e-05,2]
[356139379,1741949443929,-500.0,9.773e-05,2]
[356139380,1741949443938,-500.0,9.773e-05,2]
[356139381,1741949443948,-500.0,9.773e-05,2]
[356139382,1741949443959,-500.0,9.773e-05,2]
[356139383,1741949443971,-415.8311131,9.773e-05,2]
[356139384,1741949443982,-500.0,9.773e-05,2]
[356139385,1741949443992,-500.0,9.773e-05,2]
[356139386,1741949444002,-500.0,9.773e-05,2]
[356139387,1741949444013,-500.0,9.773e-05,2]
[356139388,1741949444022,-500.0,9.773e-05,2]
[356139389,1741949444031,-477.86072213,9.773e-05,2]
[356139390,1741949444042,-500.0,9.773e-05,2]
[356139391,1741949444053,-500.0,9.773e-05,2]
[356139392,1741949444063,-500.0,9.773e-05,2]
[356139393,1741949444072,-500.0,9.773e-05,2]
[356139394,1741949444081,-500.0,9.773e-05,2]
[356139395,1741949444090,-500.0,9.773e-05,2]
[356139396,1741949444099,-500.12995333,9.773e-05,2]
[356139397,1741949444109,-267.68801484,9.773e-05,2]
[356139398,1741949444118,-500.0,9.773e-05,2]
[356139399,1741949444128,-500.0,9.773e-05,2]
[356139400,1741949444137,-500.0,9.773e-05,2]
[356139401,1741949444146,-500.0,9.773e-05,2]
[356139402,1741949444156,-364.29204742,9.773e-05,2]
[356139403,1741949444166,-443.24963028,9.773e-05,2]
[356139404,1741949444175,-500.0,9.773e-05,2]
[356139405,1741949444185,-505.21169613,9.773e-05,2]
[356139406,1741949444194,-501.10489285,9.773e-05,2]
[356139407,1741949444203,-500.0,9.773e-05,2]
[356139408,1741949444213,-1518.98099201,9.773e-05,2]
[356139409,1741949444222,-1518.98099199,9.78e-05,2]
[356139410,1741949444232,-186.9553738,9.78e-05,2]
[356139411,1741949444241,-402.36327774,9.78e-05,2]
[356139412,1741949444251,-186.9553738,9.78e-05,2]
[356139413,1741949444260,-186.9553738,9.78e-05,2]
[356139414,1741949444269,-641.1015605,9.78e-05,2]
[356139415,1741949444279,-186.9553738,9.78e-05,2]
[356139416,1741949444288,-186.9553738,9.78e-05,2]
[356139417,1741949444298,-332.3305259,9.78e-05,2]
[356139418,1741949444308,-186.9553738,9.78e-05,2]
[356139419,1741949444319,-155.417131,9.78e-05,2]
[356139420,1741949444328,-186.9553738,9.78e-05,2]
[356139421,1741949444337,-186.9553738,9.78e-05,2]
[356139422,1741949444347,-186.9553738,9.78e-05,2]
[356139423,1741949444357,-186.9553738,9.78e-05,2]
[356139424,1741949444367,-155.4628988,9.78e-05,2]
[356139425,1741949444561,-186.9553738,9.78e-05,2]
[356139426,1741949444572,-186.9553738,9.78e-05,2]
[356139427,1741949444582,-186.9553738,9.78e-05,2]
[356139428,1741949444592,-357.3854597,9.78e-05,2]
[356139429,1741949444601,-155.55286,9.78e-05,2]
[356139430,1741949444611,-229.4716684,9.78e-05,2]
[356139431,1741949444620,-559.9647179,9.78e-05,2]
[356139432,1741949444629,-186.9553738,9.78e-05,2]
[356139433,1741949444639,-186.9553738,9.78e-05,2]
[356139434,1741949444648,-357.3854597,9.78e-05,2]
[356139435,1741949444658,-559.9647179,9.78e-05,2]
[356139436,1741949444667,-155.55286,9.78e-05,2]
[356139437,1741949444677,-153.0,9.78e-05,2]
[356139438,1741949444686,-153.0,9.78e-05,2]
[356139439,1741949444695,-357.3854597,9.78e-05,2]
[356139440,1741949444705,-155.55286,9.78e-05,2]
[356139441,1741949444714,-559.9647179,9.78e-05,2]
[356139442,1741949444724,-559.9647179,9.78e-05,2]
[356139443,1741949444733,-357.3854597,9.78e-05,2]
[356139444,1741949444742,-155.55286,9.78e-05,2]
[356139445,1741949444751,-155.55286,9.78e-05,2]
[356139446,1741949444761,-643.6463748,9.78e-05,2]
[356139447,1741949444771,-559.9647179,9.78e-05,2]
[356139448,1741949444780,-559.9647179,9.78e-05,2]
[356139449,1741949444789,-155.55286,9.78e-05,2]
[356139450,1741949444800,-1518.98099199,9.786e-05,2]
[356139451,1741949444809,-1518.98099199,9.793e-05,2]
[356139452,1741949444821,-500.0,9.798e-05,2]
[356139453,1741949444831,-500.0,9.798e-05,2]
[356139454,1741949444841,-500.0,9.798e-05,2]
[356139455,1741949444851,-500.0,9.798e-05,2]
[356139456,1741949444860,-500.0,9.798e-05,2]
[356139457,1741949444870,-500.0,9.798e-05,2]
[356139458,1741949444879,-500.0,9.798e-05,2]
[356139459,1741949444889,-509.64361628,9.798e-05,2]
[356139460,1741949444900,-663.47,9.798e-05,2]
[356139461,1741949444910,-500.0,9.798e-05,2]